bitfinex/quotes_ETHUSD_20260313
["timestamp","ask_amount","ask_price","bid_price","bid_amount"]
[1773413111389,3.74390004,2172.4,2171.1,1.15149002]
[1773413111592,1.15074798,2172.5,2171.6,0.78494146]
[1773413111970,1.15074798,2172.5,2171.7,0.04604687]
[1773413112277,1.15074798,2172.5,2171.5,0.78494146]
[1773413112492,4.60299194,2172.6,2171.6,1.15118324]
[1773413112791,4.60299194,2172.6,2171.6,0.04604899]
[1773413112970,4.60299194,2172.6,2171.3,0.04605535]
[1773413113301,1.793,2172.5,2171.3,0.83099681]
[1773413113615,4.60299194,2172.6,2171.3,0.83099681]
[1773413113616,3.74390004,2172.3,2171.3,0.83099681]
[1773413113898,3.74390004,2172.3,2171.3,0.04605535]
[1773413114111,3.74390004,2172.3,2171.2,0.04605747]
[1773413114280,3.74390004,2172.1,2171.1,0.0460596]
[1773413114622,3.74090004,2172.4,2171.2,0.04605747]
[1773413114787,3.74090004,2172.4,2171.3,0.04605535]
[1773413114788,4.4821524,2172.3,2171.3,0.04605535]
[1773413115125,2.94374798,2172.5,2170.9,3.97381302]
[1773413115397,2.6899392,2172.4,2170.9,3.97381302]
[1773413115600,6.43383924,2172.4,2170.9,3.97381302]
[1773413115771,6.43383924,2172.3,2171.0,0.04606172]
[1773413115970,2.6899392,2172.2,2170.8,3.97381302]
[1773413116170,2.6899392,2172.2,2170.9,0.04606384]
[1773413116591,2.9439599,2172.1,2170.9,1.15159611]
[1773413117104,1.1509599,2172.1,2170.9,1.15159611]
[1773413117283,6.39592554,2172.6,2170.9,5.17147297]
[1773413117483,2.6951656,2172.5,2171.2,1.5917656]
[1773413117816,1.1504832,2173.0,2171.4,3.97381302]
[1773413117984,2.69598389,2172.9,2171.5,3.97381302]
[1773413118571,3.84655526,2172.9,2171.6,1.1512249]
[1773413118798,2.69598389,2172.8,2171.6,2.7429905]
[1773413119007,1.150311,2173.4,2171.7,4.01985989]
[1773413119184,2.70002225,2173.3,2172.1,3.97381302]
[1773413119386,2.70002225,2173.2,2172.1,3.97381302]
[1773413119594,6.39287368,2173.6,2172.1,3.97381302]
[1773413119595,1.15019928,2173.6,2172.1,3.97381302]
[1773413119887,2.70161588,2173.5,2172.1,1.90430998]
[1773413120214,2.70161588,2173.4,2172.2,3.97381302]
[1773413120525,2.70161588,2173.3,2172.3,1.15085393]
[1773413120822,1.15017743,2173.6,2172.3,1.15085393]
[1773413121027,2.7013671,2173.5,2172.3,1.15085393]
[1773413121235,4.24491118,2173.3,2171.8,4.60440435]
[1773413121447,4.24491118,2173.1,2171.7,4.60460891]
[1773413121607,4.24491118,2172.7,2171.6,0.001]
[1773413121804,2.7013671,2172.6,2171.6,1.15222352]
[1773413122006,6.94627828,2172.5,2171.6,0.001]
[1773413122345,6.94627828,2172.5,2171.6,1.1982694]
[1773413122346,2.7013671,2172.4,2171.6,1.1982694]
[1773413122628,3.85220762,2172.4,2171.6,0.001]
[1773413122828,2.9416219,2172.8,2171.6,0.001]
[1773413123128,2.69959747,2172.7,2171.6,0.001]
[1773413123330,1.15057406,2172.9,2171.6,0.001]
[1773413123624,2.70039273,2172.8,2171.6,0.001]
[1773413124020,2.69926695,2172.7,2171.6,0.001]
[1773413124323,1.15054277,2172.9,2171.6,0.001]
[1773413124509,4.24491118,2172.7,2171.6,0.001]
[1773413124694,4.24491118,2172.5,2171.6,0.001]
[1773413124895,4.60278007,2172.7,2171.6,0.04704899]
[1773413124896,2.69868528,2172.4,2171.6,0.04704899]
[1773413125203,1.1506455,2172.7,2171.6,0.001]
[1773413125204,5.39555668,2172.7,2171.6,0.001]
[1773413125401,6.94237757,2172.6,2171.6,0.04704899]
[1773413125611,1.1506455,2172.7,2171.6,0.04704899]
[1773413125612,6.94237757,2172.5,2171.6,0.001]
[1773413125933,2.69746639,2172.4,2171.6,0.001]
[1773413126224,1.791,2172.3,2171.6,0.001]
[1773413126418,4.24491118,2172.5,2171.6,0.001]
[1773413126613,3.84801075,2172.4,2171.6,0.001]
[1773413126815,1.791,2172.7,2171.6,0.001]
[1773413127126,1.1505891,2172.8,2171.6,0.001]
[1773413127127,2.6975848,2172.6,2171.6,0.001]
[1773413127327,1.15051669,2173.0,2171.6,3.89300784]
[1773413127624,2.69789139,2172.9,2171.6,3.84695885]
[1773413128531,4.48889139,2172.9,2171.7,3.89200572]
[1773413128693,3.84848049,2172.8,2171.8,1.15111888]
[1773413128902,2.69518864,2172.7,2171.8,1.15111888]
[1773413129106,2.69518864,2172.7,2171.6,0.001]
[1773413129301,2.69518864,2172.7,2171.6,1.15221958]
[1773413129537,2.69518864,2172.7,2171.7,0.04604687]
[1773413129725,2.69518864,2172.6,2171.6,0.001]
[1773413129922,2.9415891,2172.8,2171.6,0.001]
[1773413129923,4.24491118,2172.4,2171.6,0.001]
[1773413130124,2.69518864,2172.3,2171.6,0.001]
[1773413130717,1.15090691,2172.2,2171.6,0.001]
[1773413130938,1.79,2172.2,2171.6,0.04704899]
[1773413131242,1.15064205,2172.7,2171.6,0.001]
[1773413131424,4.48811008,2172.6,2171.6,0.001]
[1773413131735,2.69811008,2172.5,2171.6,0.04704899]
[1773413132042,2.69811008,2172.5,2171.6,0.001]
[1773413132243,6.98907237,2172.4,2170.9,4.60618386]
[1773413132532,4.48811008,2172.3,2171.0,0.04606172]
[1773413132743,3.8490582,2172.2,2171.1,1.15149002]
[1773413132924,4.48811008,2172.1,2171.1,1.15149002]
[1773413133106,2.69811008,2172.0,2171.2,0.04605747]
[1773413133538,1.15094812,2172.2,2171.2,0.04605747]
[1773413133710,2.70144445,2172.1,2171.2,0.04605747]
[1773413133911,4.49144445,2172.1,2171.2,0.04605747]
[1773413134239,2.70152041,2172.0,2171.3,0.001]
[1773413134641,1.15094812,2172.2,2171.3,0.001]
[1773413134822,2.70296506,2172.1,2171.3,0.001]
[1773413136134,4.60301397,2172.5,2171.3,0.001]
[1773413136135,2.93969501,2172.7,2171.3,3.84695885]
[1773413136436,1.15069501,2172.7,2171.4,3.84595885]
[1773413136638,1.15262673,2172.8,2171.6,3.84595885]
[1773413136938,0.002,2172.8,2171.8,1.15111888]
[1773413137136,0.002,2172.8,2171.9,0.04604263]
[1773413137327,0.002,2172.8,2171.8,1.15111888]
[1773413137529,0.002,2172.8,2171.9,0.04604263]
[1773413138034,0.002,2172.8,2171.9,3.89200148]
[1773413138843,0.002,2172.8,2172.0,1.15101289]
[1773413139233,0.002,2172.8,2172.0,1.21101289]
[1773413139551,0.002,2172.8,2172.1,0.04603839]
[1773413140244,6.03091118,2173.3,2172.1,0.04603839]
[1773413140436,7.22732614,2173.3,2172.0,1.21101289]
[1773413140642,1.786,2173.2,2172.0,1.21101289]
[1773413140847,4.24491118,2172.9,2172.0,0.06]
[1773413141148,1.83205111,2172.8,2172.0,0.06]
[1773413141344,1.785,2172.7,2172.0,0.06]
[1773413141546,0.04605111,2172.6,2172.0,0.06]
[1773413141747,1.83105111,2172.6,2172.0,1.21100904]
[1773413141948,1.83105111,2172.6,2172.1,0.04603839]
[1773413142130,1.83105111,2172.6,2172.0,0.06]
[1773413142448,0.04605111,2172.6,2172.0,1.21100835]
[1773413142647,4.29096229,2172.8,2172.0,0.06]
[1773413142944,1.15064205,2172.7,2172.0,0.06]
[1773413143149,0.04605111,2172.6,2172.0,1.21100374]
[1773413143346,0.04605111,2172.6,2172.0,0.06]
[1773413143643,0.04605111,2172.6,2172.0,1.21100388]
[1773413143849,0.04605111,2172.6,2172.0,1.21100788]
[1773413144057,0.04605111,2172.6,2172.1,0.04603839]
[1773413144241,1.15059361,2172.8,2172.1,0.04603839]
[1773413144440,1.15059361,2172.8,2172.0,1.21100788]
[1773413144836,1.15059361,2172.8,2172.1,0.04603839]
[1773413145034,2.93259361,2172.8,2172.2,1.15090691]
[1773413145237,5.39530725,2173.2,2172.2,1.15090691]
[1773413145567,5.44135836,2173.2,2172.3,0.04603415]
[1773413145774,1.781,2173.1,2172.3,0.04603415]
[1773413146345,0.04605111,2173.0,2172.2,1.15090691]
[1773413146659,4.89044874,2173.6,2172.4,1.52088656]
[1773413146859,1.1500964,2173.8,2172.8,1.52088656]
[1773413147074,1.1500964,2173.8,2172.9,1.15053614]
[1773413147482,4.64624592,2173.9,2172.9,1.15053614]
[1773413147483,0.04605111,2173.9,2172.9,1.15053614]
[1773413147632,1.78,2174.2,2173.1,1.52088656]
[1773413147954,0.04605111,2174.3,2173.1,1.52088656]
[1773413148159,1.779,2174.3,2173.1,1.52088656]
[1773413148349,4.93611154,2174.4,2173.1,1.52088656]
[1773413148550,3.74027741,2174.3,2172.9,1.15053614]
[1773413148755,3.74027741,2174.1,2172.9,1.15053614]
[1773413149156,1.19600511,2174.0,2172.8,4.60214459]
[1773413149770,2.97400511,2174.0,2172.8,4.60214459]
[1773413149975,1.19600511,2174.0,2172.8,4.64816815]
[1773413150151,3.74027741,2173.9,2172.1,1.1509599]
[1773413150462,3.78632852,2173.8,2172.2,0.04603627]
[1773413150632,3.74027741,2173.7,2172.2,3.7997782]
[1773413150840,0.04605111,2173.6,2172.4,1.52088656]
[1773413151038,0.04605111,2173.6,2172.2,3.75374193]
[1773413151039,3.78166997,2173.5,2172.2,3.75374193]
[1773413151279,0.04605111,2173.4,2172.3,0.04603415]
[1773413151983,1.19624005,2173.6,2172.4,1.52088656]
[1773413152183,1.82105111,2173.8,2172.8,1.52088656]
[1773413152475,3.82772108,2173.8,2172.4,1.52088656]
[1773413152651,1.19603348,2174.0,2172.8,1.52088656]
[1773413152856,3.78166997,2173.9,2172.5,3.81879464]
[1773413153173,1.15011271,2173.7,2172.6,1.15069501]
[1773413153374,0.04605111,2173.6,2172.6,1.15069501]
[1773413153749,3.82772108,2173.6,2172.2,4.60343275]
[1773413154084,3.82772108,2173.6,2172.3,5.3396812]
[1773413154259,3.82772108,2173.6,2172.4,0.04603203]
[1773413154662,3.78166997,2173.6,2172.4,0.04603203]
[1773413154857,3.82772108,2173.6,2172.4,0.04603203]
[1773413155200,1.19616382,2173.7,2172.6,1.52088656]
[1773413155483,8.38151386,2174.0,2172.6,1.52088656]
[1773413155484,4.93162561,2174.0,2173.0,1.52088656]
[1773413155678,1.19595548,2174.1,2173.1,0.04601721]
[1773413155880,4.97762545,2174.1,2172.7,6.49032325]
[1773413156068,4.97762545,2174.1,2172.7,7.85832325]
[1773413156277,4.97762545,2174.1,2172.8,0.04602356]
[1773413156668,4.97762545,2174.1,2172.7,6.49032325]
[1773413156866,1.19589933,2174.2,2172.9,1.52088656]
[1773413157065,3.78166997,2174.1,2172.7,1.15064205]
[1773413157260,3.78166997,2174.1,2172.6,4.60256823]
[1773413157261,3.78166997,2173.7,2172.4,8.42198349]
[1773413157589,3.82772108,2173.6,2172.5,0.04602991]
[1773413157784,3.82772108,2173.6,2172.4,1.15080095]
[1773413158356,3.82772108,2173.6,2172.5,0.04602991]
[1773413158676,3.82772108,2173.6,2172.4,1.15080095]
[1773413158986,3.82772108,2173.6,2172.5,1.52088656]
[1773413158987,0.04605111,2173.6,2172.5,1.52088656]
[1773413159185,3.78166997,2173.8,2172.5,5.38571111]
[1773413159384,2.91902288,2173.9,2172.6,4.96948965]
[1773413159592,0.04605111,2173.8,2172.7,0.04602568]
[1773413159766,3.82772108,2173.8,2172.2,3.81879464]
[1773413160088,3.82772108,2173.8,2172.3,1.19688808]
[1773413160089,3.78166997,2173.7,2172.3,1.19688808]
[1773413160289,0.04605111,2173.6,2172.4,3.81879464]
[1773413160481,3.82772108,2173.7,2172.5,0.04602991]
[1773413160688,0.04605111,2173.7,2172.6,3.81879464]
[1773413160989,0.04605111,2173.6,2172.3,1.15085393]
[1773413161292,0.04605111,2173.9,2172.4,3.86482667]
[1773413161492,4.93130668,2174.6,2173.0,3.81879464]
[1773413161795,1.59531309,2175.5,2173.0,3.81879464]
[1773413161796,4.59746935,2175.2,2173.6,3.81879464]
[1773413161990,3.78166997,2175.1,2173.4,0.04601085]
[1773413162167,3.78166997,2175.1,2173.2,3.81879464]
[1773413162168,3.78166997,2175.1,2173.5,0.04600874]
[1773413162372,3.78166997,2175.1,2173.7,3.81879464]
[1773413162580,1.15128989,2175.3,2173.9,3.81879464]
[1773413163286,0.002,2175.3,2174.1,5.25472306]
[1773413163486,0.002,2175.3,2174.3,1.14979533]
[1773413163688,0.002,2175.3,2174.3,4.96858997]
[1773413164593,0.002,2175.3,2174.3,1.14979533]
[1773413165576,0.002,2175.3,2174.2,1.14984822]
[1773413165892,3.78366997,2175.3,2174.2,1.14984822]
[1773413166459,0.002,2175.3,2174.2,1.14984822]
[1773413167176,3.78366997,2175.3,2174.2,1.14984822]
[1773413167375,3.78366997,2175.3,2173.6,1.15016562]
[1773413167704,3.78166997,2175.1,2173.2,1.15037732]
[1773413167996,1.1493196,2175.2,2173.2,1.15037732]
[1773413167997,3.78166997,2174.9,2173.2,1.15037732]
[1773413168295,5.53966997,2174.8,2173.2,1.15037732]
[1773413168474,3.78166997,2174.6,2173.2,1.15037732]
[1773413168875,3.78166997,2174.6,2173.3,0.04601297]
[1773413169081,3.78166997,2175.1,2173.3,3.86480761]
[1773413169397,1.1493196,2175.2,2173.7,3.81879464]
[1773413169703,3.78366997,2175.3,2173.8,1.1500598]
[1773413170269,3.78366997,2175.3,2173.9,0.04600027]
[1773413170479,3.78366997,2175.3,2173.4,1.59531309]
[1773413170794,3.78166997,2175.1,2173.5,1.19622728]
[1773413171094,3.78166997,2175.1,2173.6,3.81879464]
[1773413171291,3.78166997,2175.1,2173.7,0.0460045]
[1773413171496,4.93109525,2175.0,2173.9,1.1500069]
[1773413171698,4.93109525,2175.0,2174.0,0.04599816]
[1773413171870,1.1493938,2175.1,2174.0,0.04599816]
[1773413172067,1.15130797,2175.3,2174.0,3.8647928]
[1773413172273,3.78166997,2175.2,2173.9,1.1500069]
[1773413172470,1.15128476,2175.3,2174.0,3.81879464]
[1773413172773,3.78166997,2175.9,2174.3,3.81879464]
[1773413172993,3.78166997,2175.9,2174.3,5.17979464]
[1773413173498,3.78166997,2175.9,2174.4,0.04598969]
[1773413173902,3.78166997,2175.8,2174.5,1.14968958]
[1773413174281,3.78166997,2175.8,2174.6,0.04598546]
[1773413174905,3.78166997,2175.8,2174.5,4.96848422]
[1773413175215,1.1489866,2175.9,2174.6,3.81879464]
[1773413175390,1.1489866,2175.9,2174.7,0.04598335]
[1773413175700,1.1489866,2175.9,2174.6,3.81879464]
[1773413176004,4.59576005,2176.0,2174.3,1.14979533]
[1773413176005,3.78166997,2176.0,2174.3,1.14979533]
[1773413176400,5.53366997,2176.0,2174.4,3.86478433]
[1773413176599,5.53366997,2176.0,2174.6,1.59531309]
[1773413176600,3.78166997,2176.0,2174.6,1.59531309]
[1773413176810,3.78166997,2176.0,2174.7,0.04598335]
[1773413176971,3.78166997,2176.0,2174.4,3.81879464]
[1773413177486,3.78166997,2176.0,2174.5,0.04598758]
[1773413177801,0.002,2175.6,2174.5,3.86478222]
[1773413178103,0.002,2175.6,2174.6,1.14963671]
[1773413178471,0.002,2175.6,2174.7,0.04598335]
[1773413178803,3.78366997,2175.6,2174.7,0.04598335]
[1773413178996,3.78366997,2175.6,2174.2,1.14984822]
[1773413179301,3.78366997,2175.6,2174.3,0.04599181]
[1773413179503,0.002,2175.6,2174.3,3.86478645]
[1773413179799,0.002,2175.6,2174.3,3.81879464]
[1773413180005,0.002,2175.6,2174.4,1.19573214]
[1773413180304,3.78366997,2175.6,2174.3,1.14975492]
[1773413180501,3.78366997,2175.6,2174.1,1.15086229]
[1773413180710,3.78366997,2175.6,2174.2,0.04599392]
[1773413181190,5.53166997,2175.6,2174.2,0.04599392]
[1773413181397,5.53166997,2175.6,2174.2,3.88324064]
[1773413181398,3.78366997,2175.6,2174.2,3.88324064]
[1773413181606,3.78366997,2175.6,2174.3,5.35390102]
[1773413181919,4.86292769,2175.5,2174.5,1.14968958]
[1773413182101,1.15115032,2175.6,2174.5,1.14968958]
[1773413182306,1.15115032,2175.6,2174.6,3.88323218]
[1773413182307,0.002,2175.6,2174.6,3.88323218]
[1773413182616,0.002,2175.6,2174.6,3.83724672]
[1773413182617,1.15110904,2175.6,2174.6,3.83724672]
[1773413182797,0.002,2175.6,2174.6,3.83724672]
[1773413183007,3.71376658,2176.1,2174.7,3.83724672]
[1773413183207,3.71376658,2176.1,2174.5,1.14968958]
[1773413183885,3.71376658,2176.1,2174.4,4.83314158]
[1773413183886,3.71376658,2175.9,2174.4,4.59875833]
[1773413184107,3.71376658,2175.7,2174.1,1.15085808]
[1773413184498,3.71376658,2175.5,2174.2,0.04599392]
[1773413184899,5.44876658,2175.4,2174.2,0.04599392]
[1773413185100,3.71376658,2175.4,2174.1,4.9881048]
[1773413185494,3.71376658,2175.4,2174.2,0.04599392]
[1773413185695,3.71376658,2175.4,2174.1,4.9881048]
[1773413185898,3.71376658,2175.4,2174.2,0.04599392]
[1773413186115,1.14926676,2175.3,2174.3,1.14979533]
[1773413186421,1.14926676,2175.3,2174.4,0.04598969]
[1773413186630,3.71376658,2175.2,2174.1,0.001]
[1773413187114,4.5967003,2175.5,2174.1,5.03414218]
[1773413187288,1.14916111,2175.5,2174.2,3.83724672]
[1773413187616,4.86288655,2175.6,2174.3,3.83724672]
[1773413187815,4.86288655,2175.6,2174.4,0.04598969]
[1773413188188,2.88304817,2175.8,2174.5,4.9869363]
[1773413188724,3.71376658,2175.7,2174.2,3.83724672]
[1773413188912,3.71376658,2175.5,2174.1,0.001]
[1773413189088,5.36903658,2175.8,2173.2,1.15037732]
[1773413189089,3.71376658,2175.1,2173.2,1.15037732]
[1773413189286,3.71376658,2175.1,2173.3,0.04601297]
[1773413189509,3.71376658,2175.1,2173.2,1.15037732]
[1773413189913,3.71376658,2175.1,2173.1,1.15338596]
[1773413190224,3.71376658,2174.7,2173.1,0.003]
[1773413190614,3.71376658,2174.5,2173.1,0.003]
[1773413190827,1.59283322,2174.4,2173.1,0.003]
[1773413190989,3.71376658,2174.3,2173.1,0.003]
[1773413191694,3.71376658,2174.3,2172.7,0.001]
[1773413192130,3.71376658,2173.9,2172.7,0.001]
[1773413192624,3.71376658,2173.9,2173.4,0.001]
[1773413192788,3.71376658,2173.7,2172.7,0.001]
[1773413192992,3.71376658,2173.7,2173.1,0.001]
[1773413193189,3.71376658,2173.7,2172.7,0.001]
[1773413193624,3.71376658,2173.7,2172.9,0.001]
[1773413193788,4.86340329,2174.6,2172.9,3.88426816]
[1773413193990,3.71376658,2174.5,2172.9,3.88426816]
[1773413194217,1.14974245,2174.4,2173.0,1.1504832]
[1773413194527,4.86346793,2174.5,2173.1,3.83724672]
[1773413194731,1.14970135,2174.5,2173.0,1.1504832]
[1773413195016,3.71376658,2174.4,2173.0,1.1504832]
[1773413195205,3.71376658,2174.2,2173.0,1.1504832]
[1773413195415,3.71376658,2174.2,2172.9,0.001]
[1773413196003,3.71376658,2173.8,2172.9,0.001]
[1773413196203,3.71376658,2173.6,2172.9,0.001]
[1773413196821,3.71376658,2173.6,2171.6,4.60485729]
[1773413196996,3.71376658,2173.4,2171.7,0.04604687]
[1773413197396,3.71376658,2173.4,2171.2,5.43007994]
[1773413197632,3.71376658,2173.4,2171.3,4.60550344]
[1773413197790,3.71376658,2173.4,2171.4,0.04605323]
[1773413197991,3.71376658,2173.3,2171.4,0.04605323]
[1773413198199,3.71376658,2173.0,2170.9,3.83724672]
[1773413198424,3.71376658,2173.0,2171.0,3.83724672]
[1773413198595,3.71376658,2173.0,2171.1,0.0460596]
[1773413198798,3.71376658,2173.0,2170.8,1.15164916]
[1773413199090,1.732,2172.9,2170.9,0.04606384]
[1773413199326,3.71376658,2172.6,2170.7,1.15166551]
[1773413199528,3.71376658,2172.6,2170.8,0.04606596]
[1773413200001,3.71376658,2172.6,2170.3,0.04607657]
[1773413200203,3.71376658,2172.4,2170.4,1.1518614]
[1773413200411,3.71376658,2172.4,2170.5,0.04607233]
[1773413200718,3.71376658,2172.2,2170.5,0.04607233]
[1773413200930,1.733,2172.1,2170.5,0.04607233]
[1773413201227,1.733,2172.1,2170.5,3.83724672]
[1773413201542,1.733,2172.1,2170.8,0.002]
[1773413201837,5.44676658,2172.1,2170.5,3.83724672]
[1773413201993,5.44676658,2172.1,2170.6,0.002]
[1773413202191,6.19975499,2171.8,2170.5,1.1517698]
[1773413202392,6.19975499,2171.8,2170.0,1.15503967]
[1773413202393,3.71376658,2171.7,2170.0,1.15503967]
[1773413202600,3.71376658,2171.5,2170.1,0.04608082]
[1773413202819,3.71376658,2171.5,2170.0,1.15503967]
[1773413203042,3.71376658,2171.5,2170.1,0.04608082]
[1773413203228,3.71376658,2171.3,2170.0,0.04908294]
[1773413203426,3.71376658,2171.2,2170.0,0.003]
[1773413203724,3.71376658,2170.8,2170.0,0.003]
[1773413203927,3.71376658,2170.4,2169.6,0.1364487]
[1773413204128,4.86568106,2170.3,2169.6,1e-08]
[1773413204297,5.44776658,2170.2,2169.6,1e-08]
[1773413204824,3.71376658,2170.2,2169.6,0.00200001]
[1773413204998,1.15191448,2170.3,2169.6,1.15227816]
[1773413205201,3.71376658,2170.7,2169.6,1.1522853]
[1773413205202,4.86550047,2170.7,2169.6,1.1522853]
[1773413205397,6.60050047,2170.7,2169.7,0.04608932]
[1773413205603,3.71376658,2170.6,2169.6,1e-08]
[1773413205797,30.0,2170.0,2169.6,1e-08]
[1773413206020,33.71376658,2170.0,2169.6,1.15228539]
[1773413206335,30.0,2170.0,2169.6,1e-08]
[1773413206519,30.0,2170.0,2169.9,0.002]
[1773413206942,30.0,2170.0,2169.8,0.001]
[1773413206943,29.998,2170.0,2169.8,0.001]
[1773413207151,31.15008676,2170.0,2169.8,0.001]
[1773413207433,34.54206364,2170.0,2169.6,1e-08]
[1773413207609,3.39197688,2169.7,2168.9,1.93759543]
[1773413207928,1.737,2169.9,2169.3,0.001]
[1773413208458,3.39197688,2169.8,2169.3,0.001]
[1773413208601,3.39197688,2169.8,2169.3,0.00200001]
[1773413208794,3.39197688,2169.8,2169.3,0.001]
[1773413209032,1.738,2169.7,2169.3,0.00200001]
[1773413209248,1.738,2169.6,2169.3,0.00200001]
[1773413209445,1.738,2169.6,2168.3,0.04611907]
[1773413209446,3.39197688,2169.5,2168.3,0.04611907]
[1773413209726,3.39197688,2169.5,2167.8,0.04612971]
[1773413209903,3.39197688,2169.3,2167.9,0.00100001]
[1773413210099,3.39197688,2169.1,2167.9,1.15418973]
[1773413210316,3.39197688,2169.1,2168.0,0.04612546]
[1773413210706,3.39197688,2169.1,2168.1,0.00100001]
[1773413210901,1.741,2169.0,2168.1,0.00100001]
[1773413211130,3.62680464,2168.9,2168.1,0.00100001]
[1773413211326,3.62680464,2168.9,2167.5,1.15336664]
[1773413211699,3.62380464,2168.9,2167.5,1.15336664]
[1773413211911,3.62380464,2168.9,2167.4,4.61375138]
[1773413211912,3.62380464,2168.9,2167.6,0.00100001]
[1773413212100,3.62380464,2168.9,2167.5,0.00100001]
[1773413212308,3.62380464,2168.9,2166.8,3.2046176]
[1773413212309,3.62680464,2168.5,2166.8,3.2046176]
[1773413212800,3.62680464,2168.5,2166.6,1.15388165]
[1773413213034,3.62680464,2168.5,2166.4,4.61552663]
[1773413213035,3.62680464,2168.5,2166.7,0.04615313]
[1773413213234,3.62680464,2167.6,2165.7,1.15436117]
[1773413213434,2.68757709,2167.7,2165.8,0.04617231]
[1773413213435,3.62680464,2167.4,2165.8,0.04617231]
[1773413213612,3.61184424,2167.4,2165.9,0.04617018]
[1773413213811,2.68757709,2167.7,2165.9,0.04617018]
[1773413213812,6.30062163,2167.7,2166.0,3.770685]
[1773413214031,6.25764541,2167.7,2166.1,0.04616592]
[1773413214235,6.25764541,2167.7,2166.2,1.15409472]
[1773413214236,7.38239133,2167.7,2166.2,1.15409472]
[1773413214579,3.61247687,2167.6,2164.8,3.28388838]
[1773413214832,3.58447448,2167.3,2165.4,1.1545211]
[1773413215035,3.58447448,2167.3,2165.5,3.34054631]
[1773413215267,3.58447448,2167.3,2165.6,0.04617657]
[1773413215446,3.58447448,2167.3,2165.5,3.34054631]
[1773413215447,3.56948583,2167.3,2165.5,3.34054631]
[1773413215606,3.56948583,2167.3,2165.6,0.04617657]
[1773413215807,3.56948583,2167.3,2165.4,1.20070194]
[1773413216005,3.56948583,2167.3,2165.4,4.50528909]
[1773413216210,3.62680464,2167.1,2165.4,4.50528909]
[1773413216540,3.62680464,2167.0,2165.4,1.15451491]
[1773413216703,3.59775714,2167.0,2165.4,1.15451491]
[1773413216904,3.55430568,2167.0,2165.5,0.04617871]
[1773413217131,3.62680464,2166.5,2165.3,1.29101854]
[1773413217333,3.59899298,2166.5,2165.3,1.29101854]
[1773413217522,3.59899298,2166.5,2165.4,0.02318188]
[1773413217721,3.58502037,2166.5,2165.3,1.29101854]
[1773413217922,3.62680464,2167.1,2165.4,0.02318188]
[1773413218122,3.61256159,2167.1,2165.4,0.02318188]
[1773413218329,3.61243384,2167.0,2165.5,1.15446779]
[1773413218531,1.15365463,2167.1,2165.3,1.29101135]
[1773413218532,3.62680464,2166.9,2165.3,1.29101135]
[1773413218730,3.62680464,2166.9,2165.4,0.02317336]
[1773413218731,3.59780175,2166.9,2165.4,0.02317336]
[1773413219050,3.52544715,2166.9,2165.4,3.47729871]
[1773413219219,4.61446172,2167.3,2165.4,3.47729871]
[1773413219220,4.76609233,2167.4,2165.6,3.45412748]
[1773413219421,4.75110101,2167.4,2165.7,3.47728059]
[1773413219654,4.73720712,2167.4,2165.7,3.47728059]
[1773413219953,3.72757203,2167.7,2166.0,3.45412748]
[1773413220248,3.67005911,2167.7,2166.1,1.154148]
[1773413220445,3.67005911,2167.7,2166.3,5.66588495]
[1773413220446,1.15333374,2167.7,2166.3,5.66588495]
[1773413220772,1.13899174,2168.2,2166.7,3.45412748]
[1773413220920,3.62680464,2168.1,2166.8,0.03747802]
[1773413221236,3.61310231,2168.1,2166.4,3.45412748]
[1773413221424,1.09693429,2168.2,2166.6,3.45412748]
[1773413221648,0.04961603,2168.1,2166.6,3.45412748]
[1773413221946,1.09693429,2168.2,2166.6,3.45412748]
[1773413221947,1.06734972,2168.2,2166.6,3.45412748]
[1773413222151,1.05363584,2168.2,2166.6,3.45412748]
[1773413222358,4.61126994,2168.7,2166.8,3.45412748]
[1773413222651,3.62680464,2169.0,2166.7,4.60795588]
[1773413222949,3.62680464,2168.6,2166.6,1.15384222]
[1773413223155,3.59921554,2168.2,2166.3,3.36575693]
[1773413223362,3.57039597,2168.2,2166.3,3.36575693]
[1773413223650,3.57039597,2168.2,2166.1,6.21331058]
[1773413223651,3.61269791,2167.8,2166.1,1.154148]
[1773413223855,3.62680464,2167.4,2165.7,4.61742052]
[1773413224018,3.5692424,2167.4,2165.7,4.61742052]
[1773413224216,3.61294788,2167.1,2165.7,4.61742052]
[1773413224542,3.61294788,2167.1,2165.8,0.04617231]
[1773413224543,3.56899323,2167.1,2165.8,0.04617231]
[1773413224737,3.55508847,2167.1,2165.7,4.61742052]
[1773413224923,3.51265618,2167.1,2165.7,4.61742052]
[1773413225262,3.43977787,2167.1,2165.6,1.15538708]
[1773413225452,3.39733696,2167.1,2165.6,1.15538708]
[1773413225647,3.38256427,2167.1,2165.6,1.15538708]
[1773413225852,3.62680464,2167.3,2165.6,1.15538708]
[1773413226017,8.19668204,2167.3,2165.7,3.45412748]
[1773413226222,3.62680464,2166.9,2165.6,0.001]
[1773413226532,1.12502322,2167.3,2165.6,3.50130405]
[1773413226929,1.15348482,2167.4,2165.8,3.45412748]
[1773413227142,1.11067524,2167.4,2166.0,3.45412748]
[1773413227448,1.11067524,2167.4,2166.1,0.04616592]
[1773413227449,1.03915481,2167.4,2166.1,0.04616592]
[1773413227643,1.0107099,2167.4,2166.0,3.45412748]
[1773413227952,1.13906044,2167.7,2166.3,3.45412748]
[1773413228254,1.76,2168.2,2166.2,2.6053218]
[1773413228255,4.598422,2168.2,2166.6,3.45412748]
[1773413228459,4.57012036,2168.2,2166.6,3.45412748]
[1773413228678,8.16773914,2168.2,2166.7,3.50028061]
[1773413228891,4.59707506,2168.6,2166.7,3.50028061]
[1773413229161,4.52327417,2168.6,2166.8,3.45412748]
[1773413229361,4.61126994,2168.9,2166.8,3.45412748]
[1773413229362,1.13770748,2168.9,2167.0,3.45412748]
[1773413229523,1.10859632,2168.9,2167.1,3.45412748]
[1773413229732,1.10859632,2168.9,2167.3,3.45412748]
[1773413230063,1.08034943,2168.9,2167.3,3.45412748]
[1773413230225,4.59651942,2169.1,2167.5,3.45412748]
[1773413230425,3.62680464,2169.0,2167.4,1.15345575]
[1773413230627,3.61187087,2169.0,2167.1,1.15360634]
[1773413230840,4.58280916,2169.1,2167.2,3.45412748]
[1773413231157,4.51021032,2169.1,2167.2,3.45412748]
[1773413231359,3.62680464,2168.8,2167.2,3.45412748]
[1773413231548,4.48116536,2169.1,2166.2,4.20246657]
[1773413231549,3.62680464,2168.0,2166.3,3.45412748]
[1773413231760,6.31438173,2167.9,2166.2,3.75940285]
[1773413232069,3.59749289,2167.8,2166.3,0.04616165]
[1773413232267,3.59749289,2167.8,2166.2,7.21353033]
[1773413232268,1.1385689,2167.7,2166.2,7.21353033]
[1773413232559,3.58344908,2167.6,2165.7,8.07142326]
[1773413232864,1.59714477,2167.4,2165.7,4.60848865]
[1773413233037,3.62680464,2167.3,2165.8,0.04617231]